fUSD/lending_fUSD_20251002
["ID","MTS","AMOUNT","RATE_DAILY","PERIOD"]
[388871331,1759447832748,-500.0,0.00017351,2]
[388871333,1759447832757,-151.0,0.00017351,2]
[388871336,1759447832767,-500.0,0.00017351,2]
[388871338,1759447832777,-151.0,0.00017351,2]
[388871340,1759447832786,-500.0,0.00017351,2]
[388871341,1759447832795,-151.0,0.00017351,2]
[388871344,1759447832806,-151.0,0.00017351,2]
[388871345,1759447832815,-500.0,0.00017351,2]
[388871348,1759447832824,-151.0,0.00017351,2]
[388871349,1759447832834,-151.0,0.00017351,2]
[388871351,1759447832843,-468.89846398,0.00017351,2]
[388871354,1759447832855,-31.10153602,0.00017351,2]
[388871356,1759447832864,-151.0,0.00017351,2]
[388871358,1759447832873,-151.0,0.00017351,2]
[388871360,1759447832882,-500.0,0.00017351,2]
[388871362,1759447832892,-151.0,0.00017351,2]
[388871364,1759447832902,-500.0,0.00017351,2]
[388871366,1759447832911,-151.0,0.00017351,2]
[388871368,1759447832920,-500.0,0.00017351,2]
[388871370,1759447832930,-151.0,0.00017351,2]
[388871372,1759447832939,-500.0,0.00017351,2]
[388871374,1759447832948,-248.71531821,0.00017351,2]
[388871376,1759447832958,-151.0,0.00017351,2]
[388871378,1759447832967,-500.0,0.00017351,2]
[388871380,1759447832976,-151.0,0.00017351,2]
[388871382,1759447832986,-500.0,0.00017351,2]
[388871384,1759447832995,-135.80042725,0.00017351,2]
[388871386,1759447833007,-15.19957275,0.00017351,2]
[388871388,1759447833016,-151.0,0.00017351,2]
[388871390,1759447833026,-151.0,0.00017351,2]
[388871392,1759447833035,-159.97358766,0.00017351,2]
[388871394,1759447833045,-1074.67304459,0.00017361,2]
[388871397,1759447833060,-2382.32695541,0.00017361,2]
[388871399,1759447833069,-350.6,0.00017408,2]
[388871401,1759447833078,-367.91,0.00017408,2]
[388871403,1759447833087,-168.0,0.0001743,2]
[388871404,1759447833096,-517.0,0.0001744,2]
[388871406,1759447833106,-165.1,0.0001754,2]
[388871409,1759447833116,-350.6,0.00017545,2]
[388871411,1759447833127,-168.0,0.00017546,2]
[388871413,1759447833138,-168.0,0.0001757,2]
[388871415,1759447833148,-168.0,0.00017607,2]
[388871417,1759447833158,-168.0,0.00017648,2]
[388871419,1759447833171,-350.6,0.00017682,2]
[388871421,1759447833191,-517.0,0.00017697,2]
[388871423,1759447833211,-120.46910241,0.00017728,2]
[388871425,1759447833235,-2068.18089759,0.00017728,2]
[388871426,1759447833244,-168.0,0.00017783,2]
[388871428,1759447833254,-350.63,0.00017819,2]
[388871429,1759447833264,-5150.0,0.00017842,2]
[388871430,1759447833274,-237.58,0.00017959,2]
[388871431,1759447833284,-151.83,0.00017972,2]
[388871432,1759447833293,-168.0,0.00018029,2]
[388871433,1759447833303,-517.0,0.00018033,2]
[388871434,1759447833313,-168.0,0.0001808,2]
[388871435,1759447833322,-168.0,0.00018116,2]
[388871436,1759447833332,-168.0,0.00018294,2]
[388871437,1759447833341,-517.0,0.00018427,2]
[388871438,1759447833351,-632.08,0.00018532,2]
[388871439,1759447833361,-8461.33,0.00018543,2]
[388871440,1759447833370,-168.0,0.00018554,2]
[388871441,1759447833380,-517.0,0.000186,2]
[388871442,1759447833390,-168.0,0.000186,2]
[388871443,1759447833399,-1000.0,0.0001863,2]
[388871444,1759447833408,-517.0,0.0001863,2]
[388871445,1759447833418,-1600.0,0.00018645,2]
[388871446,1759447833428,-152.07,0.00018646,2]
[388871447,1759447833438,-152.07,0.00018646,2]
[388871448,1759447833447,-150.08,0.00018646,2]
[388871449,1759447833456,-152.82,0.00018646,2]
[388871450,1759447833465,-152.16,0.00018646,2]
[388871451,1759447833475,-434.81,0.00018646,2]
[388871452,1759447833484,-430.4,0.00018646,2]
[388871453,1759447833493,-301.75,0.00018646,2]
[388871454,1759447833503,-151.49,0.00018646,2]
[388871455,1759447833512,-151.66,0.00018646,2]
[388871456,1759447833522,-443.2,0.00018646,2]
[388871457,1759447833533,-428.71,0.00018646,2]
[388871458,1759447833542,-1000.0,0.00018646,2]
[388871459,1759447833552,-305.39,0.00018646,2]
[388871460,1759447833561,-150.17,0.00018647,2]
[388871461,1759447833570,-302.05,0.00018647,2]
[388871462,1759447833580,-150.21,0.00018647,2]
[388871463,1759447833590,-150.24,0.00018647,2]
[388871464,1759447833599,-303.06,0.00018647,2]
[388871465,1759447833951,-151.17,0.00018647,2]
[388871466,1759447833961,-300.63,0.00018647,2]
[388871467,1759447833970,-152.13,0.00018647,2]
[388871468,1759447833981,-151.93,0.00018647,2]
[388871469,1759447833990,-150.01,0.00018647,2]
[388871470,1759447833999,-303.83,0.00018647,2]
[388871471,1759447834008,-150.84,0.00018647,2]
[388871472,1759447834018,-151.63,0.00018647,2]
[388871473,1759447834028,-151.02,0.00018647,2]
[388871474,1759447834037,-150.95,0.00018647,2]
[388871475,1759447834047,-301.87,0.00018647,2]
[388871476,1759447834057,-300.0,0.00018651,2]
[388871477,1759447834066,-1584.0,0.0001866,2]
[388871478,1759447834075,-570.0,0.0001866,2]
[388871479,1759447834085,-1306.0,0.0001866,2]
[388871480,1759447834095,-603.0,0.0001866,2]
[388871481,1759447834104,-821.0,0.0001866,2]
[388871482,1759447834114,-866.379,0.0001866,2]
[388871483,1759447834123,-1264.0,0.0001866,2]
[388871484,1759447834133,-788.0,0.0001866,2]
[388871485,1759447834142,-6233.0,0.0001866,2]
[388871486,1759447834151,-1500.0,0.00018684,2]
[388871487,1759447834160,-500.0,0.000187,2]
[388871488,1759447834170,-500.0,0.000187,2]
[388871489,1759447834183,-500.0,0.000187,2]
[388871490,1759447834192,-500.0,0.000187,2]
[388871491,1759447834203,-276.6632098,0.0001872,2]
[388871492,1759447834212,-420.0,0.00018726,2]
[388871493,1759447834223,-517.0,0.00018736,2]
[388871494,1759447834233,-1386.13006987,0.00018741,2]
[388871495,1759447834246,-1717.41993013,0.00018741,2]
[388871496,1759447834257,-250.0,0.00018772,2]
[388871497,1759447834267,-300.0,0.00018772,2]
[388871498,1759447834276,-2500.0,0.00018772,2]
[388871499,1759447834285,-250.0,0.00018799,2]
[388871500,1759447834295,-1680.0,0.00018803,2]
[388871501,1759447834304,-632.08,0.00018806,2]
[388871502,1759447834313,-5756.0,0.00018845,2]
[388871503,1759447834323,-307.92009188,0.00019,2]
[388871504,1759447834333,-190.35806062,0.00019,2]
[388871505,1759447834342,-632.08,0.0001908,2]
[388871506,1759447834352,-370.49393606,0.00019105,2]
[388871508,1759447834361,-151.0,0.00019178,2]
[388871509,1759447834370,-200.0,0.00019178,2]
[388871510,1759447834379,-307.92009188,0.000192,2]
[388871511,1759447834388,-190.35806062,0.000192,2]
[388871512,1759447834398,-3354.3782,0.00019223,2]
[388871513,1759447834408,-1000.0,0.00019248,2]
[388871514,1759447834417,-1000.0,0.00019248,2]
[388871515,1759447834426,-1000.0,0.00019248,2]
[388871516,1759447834436,-1000.0,0.00019248,2]
[388871517,1759447834445,-1000.0,0.000193,2]
[388871518,1759447834454,-632.08,0.00019354,2]
[388871519,1759447834464,-307.92009188,0.000194,2]
[388871520,1759447834473,-190.35806062,0.000194,2]
[388871521,1759447834484,-307.92009188,0.000196,2]
[388871522,1759447834495,-190.35806062,0.000196,2]
[388871523,1759447834505,-632.08,0.00019628,2]
[388871524,1759447834515,-150.0,0.00019701,2]
[388871525,1759447834524,-156.587,0.00019726,2]
[388871526,1759447834533,-1500.0,0.00019796,2]
[388871527,1759447834542,-1500.0,0.00019796,2]
[388871528,1759447834551,-1500.0,0.00019796,2]
[388871529,1759447834561,-1500.0,0.00019796,2]
[388871530,1759447834570,-307.92009188,0.000198,2]
[388871531,1759447834579,-190.35806062,0.000198,2]
[388871532,1759447834589,-632.08,0.00019902,2]
[388871533,1759447834599,-2378.061,0.00019903,2]
[388871534,1759447834608,-174.87328649,0.00019999,2]
[388871535,1759447834617,-500.0,0.00019999,2]
[388871536,1759447834627,-240.79144669,0.00019999,2]
[388871537,1759447834636,-446.28651928,0.00019999,2]
[388871538,1759447834646,-988.87801158,0.0002,2]
[388871539,1759447834656,-43387.04064549,0.0002,2]
[388871540,1759447834667,-759.80301203,0.0002,2]
[388871541,1759447834678,-24548.49495727,0.0002,2]
[388871542,1759447834710,-25318.56876299,0.0002,2]
[388871543,1759447834721,-1520.00131103,0.0002,2]
[388871544,1759447834734,-26611.58150839,0.0002,2]
[388871545,1759447834769,-964.06434895,0.0002,2]
[388871546,1759447834810,-16982.81577789,0.0002,2]
[388871547,1759447834819,-400.0,0.0002,2]
[388871548,1759447834829,-3082.25,0.00020004,2]
[388871549,1759447834839,-487.62046087,0.0002009,2]
[388871550,1759447834848,-309.57,0.00020145,2]
[388871551,1759447834857,-150.99,0.00020145,2]
[388871552,1759447834867,-999.99,0.00020145,2]
[388871553,1759447834877,-632.08,0.00020176,2]
[388871554,1759447834886,-988.87801158,0.000202,2]
[388871555,1759447834896,-150.0,0.00020258,2]
[388871556,1759447834906,-175.59,0.00020258,2]
[388871557,1759447834915,-545.29,0.00020258,2]
[388871558,1759447834924,-151.75,0.00020258,2]
[388871559,1759447834933,-1196.84,0.00020258,2]
[388871560,1759447834942,-150.0,0.00020258,2]
[388871561,1759447834952,-167.81,0.00020258,2]
[388871562,1759447834961,-412.63,0.00020258,2]
[388871563,1759447834972,-350.33,0.00020262,2]
[388871564,1759447834983,-150.0,0.00020262,2]
[388871565,1759447834993,-1196.84,0.00020262,2]
[388871566,1759447835003,-150.0,0.00020262,2]
[388871567,1759447835013,-150.0,0.00020262,2]
[388871568,1759447835024,-412.63,0.00020262,2]
[388871570,1759447835034,-322.04,0.00020262,2]
[388871571,1759447835043,-166.31,0.00020274,2]
[388871572,1759447835053,-545.29,0.00020278,2]
[388871573,1759447835063,-167.81,0.00020278,2]
[388871574,1759447835073,-4040.8042,0.000203,2]
[388871575,1759447835082,-2000.0,0.00020344,2]
[388871576,1759447835091,-2000.0,0.00020344,2]
[388871577,1759447835102,-301.22856971,0.00020344,2]
[388871578,1759447835111,-500.0,0.00020344,2]
[388871579,1759447835121,-153.11,0.00020385,2]
[388871580,1759447835130,-988.87801158,0.000204,2]
[388871581,1759447835140,-587.0,0.00020449,2]
[388871582,1759447835150,-632.14,0.0002045,2]
[388871583,1759447835159,-2000.0,0.000205,2]
[388871584,1759447835170,-189.38,0.00020548,2]
[388871585,1759447835182,-988.87801158,0.000206,2]
[388871586,1759447835192,-2351.0,0.00020636,2]
[388871587,1759447835202,-151.31,0.0002068,2]
[388871588,1759447835211,-170.1585,0.0002079,2]
[388871589,1759447835223,-150.0,0.00020796,4]
[388871590,1759447835233,-988.87801158,0.000208,2]
[388871591,1759447835244,-600.0,0.00020822,2]
[388871592,1759447835254,-830.4047,0.00020828,2]
[388871593,1759447835263,-2500.0,0.00020828,2]
[388871594,1759447835273,-510.83772045,0.00020828,2]
[388871595,1759447835282,-2403.195599,0.00020828,2]
[388871596,1759447835292,-177.32799255,0.00020832,2]
[388871597,1759447835301,-170.1585,0.0002089,2]
[388871598,1759447835310,-2500.0,0.00020892,2]
[388871599,1759447835320,-2500.0,0.00020892,2]
[388871600,1759447835329,-338.84266688,0.000209,2]
[388871601,1759447835339,-151.0,0.00020925,2]
[388871602,1759447835349,-106773.4364444,0.00020928,2]
[388871603,1759447835359,-1070.1839371,0.00020928,2]
[388871604,1759447835368,-28589.9852359,0.00020928,2]
[388871605,1759447835378,-807.15,0.00020932,2]
[388871606,1759447835387,-481.78,0.00020932,2]
[388871607,1759447835397,-807.15,0.00020932,2]
[388871608,1759447835406,-473.71,0.00020932,2]
[388871609,1759447835416,-473.71,0.00020932,2]
[388871610,1759447835425,-807.15,0.00020932,2]
[388871611,1759447835434,-473.71,0.00020932,2]
[388871612,1759447835444,-807.15,0.00020932,2]
[388871613,1759447835454,-805.54,0.00020932,2]
[388871614,1759447835463,-473.71,0.00020932,2]
[388871615,1759447835472,-510.83772044,0.00020947,2]
[388871616,1759447835482,-905.3600301,0.00020954,2]
[388871617,1759447835492,-3543.2088364,0.00020964,2]
[388871618,1759447835502,-2403.19559897,0.00020999,2]
[388871619,1759447835512,-356.89039301,0.00020999,5]
[388871620,1759447835522,-191511.48894435,0.00021,2]
[388871621,1759447835532,-156.67646561,0.00021,2]
[388871622,1759447835541,-169.1,0.00021,4]
[388871623,1759447835551,-1000.0,0.00021,2]
[388871624,1759447835561,-510.83772044,0.00021066,2]
[388871625,1759447835571,-335.26,0.00021068,2]
[388871626,1759447835580,-545.07,0.00021068,2]
[388871627,1759447835590,-166.31,0.00021068,2]
[388871628,1759447835600,-339.21,0.00021068,2]
[388871629,1759447835610,-412.63,0.00021084,2]
[388871630,1759447835620,-1591.94,0.00021094,2]
[388871631,1759447835630,-790.0,0.00021095,2]
[388871632,1759447835639,-338.84266686,0.0002111,2]
[388871633,1759447835649,-170.15851,0.0002114,2]
[388871634,1759447835659,-2403.19559897,0.0002117,2]
[388871635,1759447835669,-510.83772044,0.00021185,2]
[388871636,1759447835679,-153.97,0.00021197,4]
[388871637,1759447835688,-165.38,0.00021216,2]
[388871638,1759447835698,-242.23,0.0002124,2]
[388871639,1759447835708,-393.5786279,0.00021278,2]
[388871640,1759447835718,-510.83772044,0.00021304,2]
[388871641,1759447835727,-338.84266686,0.0002132,2]
[388871642,1759447835737,-2403.19559897,0.0002134,2]
[388871643,1759447835747,-5000.0,0.00021356,2]
[388871644,1759447835758,-170.1585,0.0002138,2]
[388871645,1759447835768,-200.0,0.000214,2]
[388871646,1759447835778,-510.83772044,0.00021424,2]
[388871647,1759447835787,-1504.83913649,0.0002144,2]
[388871648,1759447835797,-3000.0,0.0002144,2]
[388871649,1759447835807,-206.1726232,0.00021451,2]
[388871650,1759447835816,-4861.26747891,0.00021456,5]
[388871651,1759447835826,-213.93,0.00021482,2]
[388871652,1759447835836,-779.0,0.000215,2]
[388871653,1759447835846,-383.41,0.000215,2]
[388871654,1759447835856,-22658.2,0.000215,2]
[388871655,1759447835866,-2403.19559897,0.00021511,2]
[388871656,1759447835875,-752.02687519,0.00021527,2]
[388871657,1759447835886,-752.02687519,0.00021527,2]
[388871658,1759447835896,-270.96235473,0.00021529,2]
[388871659,1759447835905,-338.84266686,0.0002153,2]
[388871660,1759447835915,-506.85149678,0.00021531,2]
[388871661,1759447835925,-533.53200157,0.00021532,2]
[388871662,1759447835936,-189.71436068,0.00021532,2]
[388871663,1759447835946,-1012.07037802,0.00021533,2]
[388871664,1759447835956,-255345.77144187,0.00021534,2]
[388871665,1759447835968,-2150.0,0.00021534,2]
[388871673,1759447840120,-666.0,0.00017516,3]
[388871674,1759447840130,-2737.53953495,0.0001866,2]
[388871675,1759447840141,-1376.46046505,0.0001866,2]
[388871676,1759447840151,-14836.2249629,0.00021534,2]
[388871677,1759447840162,-720.245,0.00021534,2]
[388871678,1759447840201,-6513.66560955,0.00021534,2]
[388871679,1759447840214,-2908.53920509,0.00021534,2]
[388871680,1759447840223,-8680.82664682,0.00021535,2]
[388871681,1759447840233,-694.40886887,0.00021535,2]
[388871682,1759447840243,-1289.69250777,0.00021535,2]
[388871683,1759447840254,-425.28893515,0.00021536,2]
[388871684,1759447840264,-474.13492037,0.00021536,2]
[388871686,1759447840273,-474.13492037,0.00021536,2]
[388871688,1759447840283,-454.53279843,0.00021536,2]
[388871689,1759447840292,-667.81614322,0.00021539,2]
[388871690,1759447840302,-1289.69250777,0.00021541,2]
[388871691,1759447840311,-1289.69250777,0.00021541,2]
[388871692,1759447840321,-510.83772044,0.00021543,2]
[388871693,1759447840329,-232.1798622,0.00021545,2]
[388871694,1759447840339,-220.00245581,0.00021545,2]
[388871695,1759447840348,-166.810454,0.00021546,2]
[388871696,1759447840358,-232.1798622,0.00021546,2]
[388871697,1759447840368,-694.40886887,0.00021548,2]
[388871698,1759447840378,-1851.77667402,0.00021549,2]
[388871699,1759447840387,-692.40334515,0.0002155,2]
[388871700,1759447840397,-506.85149678,0.0002155,2]
[388871701,1759447840406,-45384.84161236,0.00021551,2]
[388871702,1759447840426,-6661.54687367,0.00021551,2]
[388871703,1759447840438,-4910.40222429,0.00021551,2]
[388871704,1759447840471,-3600.0,0.00021551,2]
[388871705,1759447840482,-1100.95696931,0.00021551,2]
[388871706,1759447840494,-2311.16,0.00021551,2]
[388871708,1759447841362,-500.0,0.00017726,2]
[388871709,1759447841372,-130.98493616,0.00017726,2]
[388871710,1759447841404,-343.03694796,0.00017726,2]
[388871711,1759447841414,-408.89920287,0.00017726,2]
[388871712,1759447841423,-158.755,0.0001866,2]
[388871713,1759447841432,-69909.34971266,0.00021551,2]
[388871714,1759447841442,-150.0,0.00021551,2]
[388871715,1759447841451,-588.83615784,0.00021551,2]
[388871716,1759447841461,-150.0,0.00021551,2]
[388871717,1759447841471,-232.02656158,0.00021551,2]
[388871718,1759447841480,-150.0,0.00021551,2]
[388871719,1759447841489,-19336.33919422,0.00021551,2]
[388871720,1759447841499,-1179.83429897,0.00021551,2]
[388871721,1759447841508,-1427.27213195,0.00021552,2]
[388871722,1759447841518,-474.13492037,0.00021552,2]
[388871723,1759447841527,-841.3165293,0.00021555,2]
[388871724,1759447841537,-13801.89448934,0.00021556,2]
[388871725,1759447841546,-1427.27213195,0.00021558,2]
[388871726,1759447841557,-474.13492037,0.0002156,2]
[388871727,1759447841566,-2345.43447803,0.00021561,2]
[388871728,1759447841576,-425.28893515,0.00021561,2]
[388871729,1759447841586,-1179.83429897,0.00021562,2]
[388871730,1759447841595,-13801.89448934,0.00021562,2]
[388871731,1759447841604,-228.41008296,0.00021565,2]
[388871732,1759447841613,-841.3165293,0.00021566,2]
[388871733,1759447841623,-228.41008296,0.00021569,2]
[388871734,1759447841632,-3134.41735569,0.0002157,2]
[388871735,1759447841642,-29211.90451287,0.0002157,2]
[388871736,1759447841651,-4150.50239362,0.00021571,2]
[388871737,1759447841660,-533.53200157,0.00021573,2]
[388871738,1759447841670,-752.02687519,0.00021573,2]
[388871739,1759447841679,-167.33373679,0.00021574,2]
[388871740,1759447841689,-87139.50744365,0.00021574,2]
[388871741,1759447841698,-1634.39364939,0.00021574,2]
[388871742,1759447841708,-533.53200157,0.00021579,2]
[388871743,1759447841717,-192.61257044,0.00021582,2]
[388871744,1759447841726,-220.00245581,0.00021583,2]
[388871745,1759447841735,-232.1798622,0.00021584,2]
[388871746,1759447841745,-13801.89448934,0.00021585,2]
[388871747,1759447841754,-4150.50239362,0.00021585,2]
[388871748,1759447841763,-533.53200157,0.00021586,2]
[388871749,1759447841772,-1012.07037802,0.00021586,2]
[388871750,1759447841783,-1179.83429897,0.00021587,2]
[388871751,1759447841792,-425.28893515,0.00021587,2]
[388871752,1759447841801,-36607.40712236,0.00021587,2]
[388871753,1759447841813,-400.82265224,0.00021587,2]
[388871754,1759447841825,-4574.31436205,0.00021587,2]
[388871755,1759447841840,-20198.08888693,0.00021587,2]
[388871756,1759447841851,-853.86922575,0.00021587,2]
[388871757,1759447841888,-45707.1371024,0.00021587,2]
[388871758,1759447841900,-361.69901031,0.00021587,2]
[388871759,1759447841995,-173771.10785737,0.00021587,2]
[388871760,1759447842005,-882.48629345,0.00021588,2]
[388871761,1759447842015,-694.40886887,0.00021589,2]
[388871762,1759447842025,-425.28893515,0.00021589,2]
[388871763,1759447842034,-228.41008296,0.00021591,2]
[388871764,1759447842044,-192.61257044,0.00021591,2]
[388871765,1759447842053,-192.61257044,0.00021592,2]
[388871766,1759447842063,-506.26238585,0.00021595,2]
[388871767,1759447842072,-882.48629345,0.00021595,2]
[388871768,1759447842082,-1179.83429897,0.00021596,2]
[388871769,1759447842091,-29544.48984305,0.00021598,2]
[388871770,1759447842103,-500.0,0.00021598,2]
[388871771,1759447842114,-57095.0176006,0.00021598,2]
[388871772,1759447842124,-667.81614322,0.00021598,2]
[388871773,1759447842133,-1248.45511788,0.00021598,2]
[388871774,1759447842143,-4150.50239362,0.000216,2]
[388871775,1759447842152,-1012.07037802,0.00021601,2]
[388871776,1759447842162,-1012.07037802,0.00021603,2]
[388871777,1759447842174,-841.3165293,0.00021605,2]
[388871778,1759447842184,-982.79014835,0.00021607,2]
[388871779,1759447842193,-26625.2783384,0.00021607,2]
[388871781,1759447843491,-641.0,0.00020932,2]
[388871783,1759447843919,-166.15,0.00020932,2]
[388871784,1759447843930,-441.902521,0.00021607,2]
[388871785,1759447843943,-1034.46698492,0.00021607,2]
[388871786,1759447843954,-37224.56060282,0.00021607,2]
[388871787,1759447843967,-21813.29899651,0.00021607,2]
[388871788,1759447843976,-234.8,0.00021608,2]
[388871789,1759447843985,-2345.43447803,0.00021608,2]
[388871790,1759447843995,-232.1798622,0.00021609,2]
[388871791,1759447844005,-1228.32946474,0.0002161,2]
[388871792,1759447844018,-270.96235473,0.00021611,2]
[388871793,1759447844028,-343.58685614,0.00021612,2]
[388871794,1759447844040,-348.81648901,0.00021612,2]
[388871795,1759447844049,-667.81614322,0.00021612,2]
[388871796,1759447844059,-3497.15151311,0.00021612,2]
[388871797,1759447844068,-4474.96345234,0.00021612,2]
[388871798,1759447844080,-337.88,0.00021612,2]
[388871801,1759447846331,-191.3181429,0.000191,2]
[388871802,1759447846340,-191.3181429,0.000193,2]
[388871803,1759447846350,-191.3181429,0.000195,2]
[388871804,1759447846360,-3867.98319448,0.00021612,2]
[388871805,1759447846370,-1419.67412943,0.00021613,2]
[388871806,1759447846441,-2491.46728808,0.00021613,2]
[388871807,1759447846587,-424.57873529,0.00021613,2]
[388871822,1759447937637,500.0,0.00030136,120]
[388871825,1759447959780,230.0,0.000112,2]
[388871835,1759448021520,161.0,0.0003013,120]
[388871836,1759448042900,2669.79,0.0003,120]
[388871837,1759448043716,400.0,0.00030136,120]
[388871839,1759448049063,400.0,0.00030136,120]
[388871851,1759448210984,500.0,0.0003,120]
[388871852,1759448238599,600.0,0.000301,120]
[388871853,1759448248602,287.0,0.000301,120]
[388871854,1759448251281,925.36295198,0.000301,120]
[388871856,1759448270841,300.0,0.0003,120]
[388871858,1759448288779,200.0,0.0003,120]
[388871860,1759448322839,646.72,0.00030136,120]
[388871862,1759448337076,1215.0,0.0003,120]
[388871864,1759448574522,242.81,9.8e-05,2]
[388871865,1759448574766,242.81,0.00010316,2]
[388871866,1759448574967,242.81,0.00010831,2]
[388871867,1759448575612,242.81,0.00011347,2]
[388871868,1759448575724,242.81,0.00011863,2]
[388871869,1759448575931,242.81,0.00012379,2]
[388871870,1759448576050,242.81,0.00012895,2]
[388871871,1759448576173,242.81,0.0001341,2]
[388871872,1759448576378,242.81,0.00013926,2]
[388871873,1759448576575,242.81,0.00014442,2]
[388871874,1759448576784,242.81,0.00014958,2]
[388871875,1759448576994,242.81,0.00015473,2]
[388871876,1759448577227,242.81,0.00015989,2]
[388871877,1759448577455,242.81,0.00016505,2]
[388871898,1759448666687,200.0,0.000301,120]
[388871899,1759448919274,500.0,0.00030137,120]
[388871900,1759448989268,-992.62786897,0.00016637,2]
[388871901,1759449025238,908.0,0.00027397,120]
[388871902,1759449025490,908.0,0.00027671,120]
[388871903,1759449025753,908.0,0.00027945,120]
[388871904,1759449025896,908.0,0.00028219,120]
[388871905,1759449026059,908.0,0.00028493,120]
[388871906,1759449026167,908.0,0.00028767,120]
[388871907,1759449026383,908.0,0.00029041,120]
[388871908,1759449026600,908.0,0.00029315,120]
[388871909,1759449026822,908.0,0.00029589,120]
[388871910,1759449027015,908.0,0.00029863,120]
[388871911,1759449027172,908.0,0.00030137,120]
[388871934,1759449031657,-336.48297848,0.00016637,2]
[388871936,1759449031667,-60.21986966,0.00016712,2]
[388871938,1759449031678,-105.78013034,0.00016712,2]
[388871940,1759449031688,-2500.0,0.00016737,2]
[388871942,1759449031697,-250.0,0.00016762,2]
[388871944,1759449031707,-297.37,0.00017,2]
[388871946,1759449031716,-242.81,0.00017021,2]
[388871948,1759449031725,-175.85,0.000172,2]
[388871949,1759449031734,-442.725131,0.00017448,2]
[388871950,1759449031743,-242.81,0.00017537,2]
[388871951,1759449031752,-174.38074457,0.00017952,2]
[388871952,1759449031762,-242.81,0.00018052,2]
[388871953,1759449031771,-992.62786897,0.00018301,2]
[388871954,1759449031780,-1200.0,0.00018383,2]
[388871955,1759449031789,-250.0,0.00018384,2]
[388871956,1759449031798,-2500.0,0.00018384,2]
[388871957,1759449031808,-2500.0,0.00018384,2]
[388871958,1759449031817,-195.0,0.00018384,2]
[388871959,1759449031826,-2500.0,0.00018384,2]
[388871960,1759449031836,-242.81,0.00018568,2]
[388871961,1759449031845,-150.49,0.00018647,2]
[388871962,1759449031854,-301.05,0.0001866,2]
[388871963,1759449031863,-151.49,0.0001866,2]
[388871964,1759449031872,-242.81,0.00019084,2]
[388871965,1759449031882,-370.49393606,0.00019094,2]
[388871966,1759449031891,-216.27720738,0.000191,2]
[388871967,1759449031900,-500.0,0.0001911,2]
[388871969,1759449031909,-500.0,0.0001911,2]
[388871971,1759449031918,-500.0,0.0001911,2]
[388871972,1759449031927,-500.0,0.0001911,2]
[388871973,1759449031936,-500.0,0.0001911,2]
[388871974,1759449031945,-500.0,0.0001911,2]
[388871975,1759449031955,-500.0,0.0001911,2]
[388871976,1759449031964,-500.0,0.0001911,2]
[388871978,1759449031974,-500.0,0.0001911,2]
[388871980,1759449031983,-500.0,0.0001911,2]
[388871982,1759449031993,-515.25587124,0.0001911,2]
[388871985,1759449032002,-1044.62751047,0.00019122,2]
[388871992,1759449032053,-529.28140338,0.00019122,2]
[388871994,1759449032065,-802.88632962,0.00019122,2]
[388871995,1759449032077,-1022.20475653,0.00019122,2]
[388871996,1759449032086,-1514.29166107,0.00019122,2]
[388871997,1759449032099,-530.70833893,0.00019122,2]
[388871998,1759449032108,-1264.0,0.00019122,2]
[388871999,1759449032118,-788.0,0.00019122,2]
[388872000,1759449032129,-570.0,0.00019122,2]